[Event "WYCC 2018 G16"]
[Site "Halkidiki"]
[Date "2018.10.24"]
[Round "6"]
[White "Gomez Barrera, Javiera Belen"]
[Black "Nemcova, Karin"]
[Result "1-0"]
[ECO "B32"]
[WhiteElo "2136"]
[BlackElo "1888"]
[Annotator "NA"]
[PlyCount "93"]
[EventDate "2018.10.20"]
[EventType "swiss"]
[EventCountry "GRE"]
[SourceTitle "playchess.com"]
[Source "ChessBase"]
[SourceQuality "1"]
[TimeControl "40/5400+30:1800+30"]

1. e4 {[%emt 0:00:00]} c5 {[%emt 0:00:00]} 2. Nf3 {[%emt 0:00:00]} Nc6 {[%emt 0:00:00]} 3. d4 {[%emt 0:00:00]} cxd4 {[%emt 0:00:00]} 4. Nxd4 {[%emt 0:00:00]} Qc7 {[%emt 0:00:00]} 5. Nb5 {[%emt 0:17:52]} Qb8 {[%emt 0:00:01]} 6. N1c3 {[%emt 0:12:44]} a6 {[%emt 0:01:56]} 7. Nd4 {[%emt 0:00:26]} Nf6 {[%emt 0:01:31]} 8. Be2 {[%emt 0:07:40]} e6 {[%emt 0:00:27]} 9. O-O {[%emt 0:03:34]} Bb4 {[%emt 0:04:59]} 10. Nxc6 {[%emt 0:02:31]} bxc6 {[%emt 0:01:47]} 11. Bf3 {[%emt 0:09:23]} O-O {[%emt 0:02:57]} 12. a3 {[%emt 0:03:25]} Be7 {[%emt 0:01:24]} 13. Re1 {[%emt 0:02:04]} d5 {[%emt 0:05:11]} 14. exd5 {[%emt 0:06:42]} cxd5 {[%emt 0:05:35]} 15. b3 {[%emt 0:15:04]} Bb7 {[%emt 0:04:42]} 16. Bb2 {[%emt 0:00:10]} Rd8 {[%emt 0:01:23]} 17. h3 {[%emt 0:01:49]} Qc7 {[%emt 0:07:55]} 18. Ne2 {[%emt 0:03:43]} Ne4 {[%emt 0:13:27]} 19. Bxe4 {[%emt 0:00:53]} dxe4 {[%emt 0:00:08]} 20. Qc1 {[%emt 0:00:16]} Rac8 {[%emt 0:01:46]} 21. Nc3 {[%emt 0:02:14]} f5 {[%emt 0:00:52]} 22. Re2 {[%emt 0:04:26]} Bf6 {[%emt 0:10:03]} 23. Na4 {[%emt 0:00:58]} Bxb2 {[%emt 0:01:34]} 24. Nxb2 {[%emt 0:00:47]} f4 {[%emt 0:00:26]} 25. Nc4 {[%emt 0:00:54]} e3 {[%emt 0:08:58]} 26. Qe1 {[%emt 0:02:19]} Rf8 {[%emt 0:08:40]} 27. f3 {[%emt 0:02:32]} e5 {[%emt 0:00:25]} 28. Qa5 {[%emt 0:00:51]} e4 {[%emt 0:02:00]} 29. Qxc7 {[%emt 0:00:10]} Rxc7 {[%emt 0:00:01]} 30. fxe4 {[%emt 0:00:28]} Bxe4 {[%emt 0:00:25]} 31. Rf1 {[%emt 0:01:00]} Bg6 {[%emt 0:01:44]} 32. g3 {[%emt 0:00:29]} Bh5 {[%emt 0:00:33]} 33. Ree1 {[%emt 0:00:32]} g5 {[%emt 0:00:11]} 34. Kh2 {[%emt 0:00:33]} e2 {[%emt 0:06:42]} 35. Rf2 {[%emt 0:00:09]} fxg3+ {[%emt 0:00:54]} 36. Kxg3 {[%emt 0:00:09]} Rxf2 {[%emt 0:00:23]} 37. Kxf2 {[%emt 0:00:01]} Rd7 {[%emt 0:00:05]} 38. Ne5 {[%emt 0:01:27]} Rd1 {[%emt 0:00:50]} 39. Ng4 {[%emt 0:00:19]} Bxg4 {[%emt 0:02:51]} 40. hxg4 {[%emt 0:00:00]} Rd4 {[%emt 0:00:00]} 41. Rxe2 {[%emt 0:08:07]} Rxg4 {[%emt 0:00:39]} 42. Re6 {[%emt 0:00:13]} a5 {[%emt 0:00:16]} 43. Re5 {[%emt 0:08:19]} a4 {[%emt 0:01:24]} 44. Ra5 {[%emt 0:05:35]} axb3 {[%emt 0:00:09]} 45. cxb3 {[%emt 0:00:01]} Kf7 {[%emt 0:01:08]} 46. Ra7+ {[%emt 0:01:30]} Kg6 {[%emt 0:00:18]} 47. Ra4 {[%emt 0:01:28]} 1-0

[Event "WYCC 2018 G16"]
[Site "Halkidiki"]
[Date "2018.10.24"]
[Round "6"]
[White "Cervantes Landeiro, Thalia"]
[Black "Serikbay, Assel"]
[Result "1/2-1/2"]
[ECO "D11"]
[WhiteElo "2129"]
[BlackElo "2166"]
[Annotator "NA"]
[PlyCount "117"]
[EventDate "2018.10.20"]
[EventType "swiss"]
[EventCountry "GRE"]
[SourceTitle "playchess.com"]
[Source "ChessBase"]
[SourceQuality "1"]
[TimeControl "40/5400+30:1800+30"]

1. d4 {[%emt 0:00:00]} d5 {[%emt 0:00:00]} 2. c4 {[%emt 0:00:00]} c6 {[%emt 0:00:00]} 3. Nf3 {[%emt 0:00:00]} Nf6 {[%emt 0:00:00]} 4. e3 {[%emt 0:00:00]} a6 {[%emt 0:00:38]} 5. Bd3 {[%emt 0:00:23]} Bg4 {[%emt 0:01:41]} 6. Nbd2 {[%emt 0:00:45]} Nbd7 {[%emt 0:00:31]} 7. Qc2 {[%emt 0:03:19]} e6 {[%emt 0:00:55]} 8. b3 {[%emt 0:00:16] D11: Slav Defence: 3 Nf3 sidelines and 3...Nf6 4 e3 Bg4} Bd6 {[%emt 0:00:39]} 9. Bb2 {[%emt 0:00:19]} Qb8 {[%emt 0:02:09]} 10. O-O {[%emt 0:05:04]} O-O {[%emt 0:00:50]} 11. h3 {[%emt 0:00:18]} Bh5 {[%emt 0:01:11]} 12. Ng5 {[%emt 0:00:19]} h6 {[%emt 0:20:10]} 13. Ngf3 {[%emt 0:00:18]} Bxf3 {[%emt 0:03:37]} 14. Nxf3 {[%emt 0:00:19]} e5 $146 {[%emt 0:03:33]} 15. dxe5 {[%emt 0:07:20]} Nxe5 {[%emt 0:00:10]} 16. Be2 {[%emt 0:03:09]} Nxf3+ {[%emt 0:26:50]} 17. Bxf3 {[%emt 0:00:15]} Be5 {[%emt 0:00:05]} 18. cxd5 {[%emt 0:02:01]} cxd5 {[%emt 0:01:48]} 19. Rac1 {[%emt 0:01:49]} Bxb2 {[%emt 0:02:57]} 20. Qxb2 {[%emt 0:00:10]} Qd6 {[%emt 0:00:52]} 21. Rfd1 {[%emt 0:01:09]} Qe6 {[%emt 0:01:56]} 22. Rd4 {[%emt 0:02:45]} Ne4 {[%emt 0:05:52]} 23. Bxe4 {[%emt 0:08:28]} dxe4 {[%emt 0:00:04]} 24. Rc7 {[%emt 0:01:27]} b5 {[%emt 0:02:35]} 25. Qc2 {[%emt 0:01:26]} Rac8 {[%emt 0:05:09]} 26. Rxc8 {[%emt 0:04:36]} Rxc8 {[%emt 0:00:05]} 27. Qxe4 {[%emt 0:00:30]} Rc1+ {[%emt 0:00:09]} 28. Kh2 {[%emt 0:00:03]} Qxe4 {[%emt 0:00:06]} 29. Rxe4 $11 {[%emt 0:00:02]} Rc2 {[%emt 0:00:05]} 30. a4 {[%emt 0:00:55]} Rxf2 {[%emt 0:03:38]} 31. axb5 {[%emt 0:01:39]} axb5 {[%emt 0:00:03]} 32. Re5 {[%emt 0:00:33]} Rb2 {[%emt 0:01:18]} 33. Rxb5 {[%emt 0:00:13]} Re2 {[%emt 0:00:04]} 34. Kg3 {[%emt 0:06:09]} Rxe3+ {[%emt 0:00:04]} 35. Kf4 {[%emt 0:00:12]} Re2 {[%emt 0:01:18]} 36. Kf3 {[%emt 0:02:34]} Rb2 {[%emt 0:00:59]} 37. h4 {[%emt 0:00:48]} h5 {[%emt 0:01:31]} 38. g3 {[%emt 0:00:54]} g6 {[%emt 0:00:31]} 39. Kf4 {[%emt 0:02:32]} Kg7 {[%emt 0:01:39]} 40. Rb7 {[%emt 0:00:00]} Rf2+ {[%emt 0:00:00]} 41. Ke4 {[%emt 0:02:20]} Rg2 {[%emt 0:01:47]} 42. Kf3 {[%emt 0:01:20]} Rb2 {[%emt 0:00:07]} 43. b4 {[%emt 0:01:01]} Kf6 {[%emt 0:01:21]} 44. Rb8 {[%emt 0:02:22]} Kf5 {[%emt 0:02:08]} 45. Rb5+ {[%emt 0:02:24]} Ke6 {[%emt 0:02:35]} 46. Kf4 {[%emt 0:01:38]} Rf2+ {[%emt 0:00:25]} 47. Ke4 {[%emt 0:00:12]} Rg2 {[%emt 0:00:55]} 48. Re5+ {[%emt 0:08:18]} Kd6 {[%emt 0:06:29]} 49. Rd5+ {[%emt 0:11:48]} Ke6 {[%emt 0:01:58]} 50. Rd3 {[%emt 0:02:04]} Rb2 {[%emt 0:00:43]} 51. Rd4 {[%emt 0:00:21]} Rb3 {[%emt 0:01:21]} 52. Kf4 {[%emt 0:00:05]} Rb1 {[%emt 0:01:08]} 53. Re4+ {[%emt 0:11:54]} Kd5 {[%emt 0:04:05]} 54. Re5+ {[%emt 0:01:38]} Kc6 {[%emt 0:07:34]} 55. b5+ {[%emt 0:02:28]} Kb6 {[%emt 0:00:21]} 56. Rg5 {[%emt 0:03:01]} Rf1+ {[%emt 0:00:50]} 57. Ke4 {[%emt 0:01:05]} Re1+ {[%emt 0:01:33]} 58. Kd4 {[%emt 0:00:20]} Rf1 {[%emt 0:01:14]} 59. Ke4 1/2-1/2

[Event "WYCC 2018 G16"]
[Site "Halkidiki"]
[Date "2018.10.24"]
[Round "6"]
[White "Ouellet, Maili-Jade"]
[Black "Puppi Lazo, Stephanie Beatriz"]
[Result "1-0"]
[ECO "A50"]
[WhiteElo "2122"]
[BlackElo "1847"]
[Annotator "NA"]
[PlyCount "127"]
[EventDate "2018.10.20"]
[EventType "swiss"]
[EventCountry "GRE"]
[SourceTitle "playchess.com"]
[Source "ChessBase"]
[SourceQuality "1"]
[TimeControl "40/5400+30:1800+30"]

1. d4 {[%emt 0:00:00]} Nf6 {[%emt 0:00:00]} 2. c4 {[%emt 0:00:00]} b6 {[%emt 0:00:00]} 3. Nc3 {[%emt 0:00:00]} Bb7 {[%emt 0:00:00]} 4. f3 {[%emt 0:00:56]} d5 {[%emt 0:00:00]} 5. cxd5 {[%emt 0:00:10]} Nxd5 {[%emt 0:00:00]} 6. e4 {[%emt 0:01:10]} Nxc3 {[%emt 0:00:00]} 7. bxc3 {[%emt 0:00:04]} e6 {[%emt 0:00:04]} 8. Bc4 {[%emt 0:08:27]} Be7 {[%emt 0:02:22]} 9. Ne2 {[%emt 0:01:40]} O-O {[%emt 0:01:35]} 10. O-O {[%emt 0:00:20]} c5 {[%emt 0:06:12]} 11. Be3 {[%emt 0:02:21]} Nc6 {[%emt 0:05:01]} 12. Rc1 {[%emt 0:01:04]} Rc8 {[%emt 0:02:45]} 13. Qd2 {[%emt 0:02:26]} cxd4 {[%emt 0:05:26]} 14. cxd4 {[%emt 0:01:15]} Bb4 {[%emt 0:00:26]} 15. Qd3 {[%emt 0:03:05]} Qe7 {[%emt 0:03:26]} 16. Rfd1 {[%emt 0:09:05]} Ba3 {[%emt 0:12:58]} 17. Rc3 {[%emt 0:17:29]} Bb2 {[%emt 0:17:05]} 18. Rb3 {[%emt 0:02:16]} Nb4 {[%emt 0:12:45]} 19. Qd2 {[%emt 0:00:48]} Rxc4 {[%emt 0:04:31]} 20. Rxb2 {[%emt 0:00:21]} Rfc8 {[%emt 0:00:53]} 21. Rc1 {[%emt 0:02:15]} Rxc1+ {[%emt 0:05:28]} 22. Nxc1 {[%emt 0:00:06]} Rxc1+ {[%emt 0:00:34]} 23. Qxc1 {[%emt 0:00:04]} Nd3 {[%emt 0:00:03]} 24. Qd2 {[%emt 0:00:36]} Nxb2 {[%emt 0:00:09]} 25. Qxb2 {[%emt 0:00:04]} Qc7 {[%emt 0:00:21]} 26. Qb5 {[%emt 0:03:39]} Qc6 {[%emt 0:00:27]} 27. Qe5 {[%emt 0:01:23]} Qc8 {[%emt 0:02:56]} 28. d5 {[%emt 0:02:26]} f6 {[%emt 0:04:09]} 29. Qd4 {[%emt 0:06:33]} Qd7 {[%emt 0:03:59]} 30. d6 {[%emt 0:02:10]} Kf7 {[%emt 0:00:18]} 31. e5 {[%emt 0:05:34]} Bd5 {[%emt 0:04:27]} 32. exf6 {[%emt 0:02:18]} gxf6 {[%emt 0:00:15]} 33. Qh4 {[%emt 0:01:01]} e5 {[%emt 0:02:09]} 34. Bd2 {[%emt 0:06:16]} a5 {[%emt 0:01:48]} 35. Be3 {[%emt 0:06:22]} Qxd6 {[%emt 0:00:53]} 36. Qxh7+ {[%emt 0:00:07]} Ke6 {[%emt 0:00:32]} 37. h4 {[%emt 0:01:10]} Qb4 {[%emt 0:02:08]} 38. Bf2 {[%emt 0:02:35]} Qf4 {[%emt 0:00:58]} 39. Qg8+ {[%emt 0:00:27]} Kd6 {[%emt 0:00:09]} 40. Qd8+ {[%emt 0:00:00]} Ke6 {[%emt 0:00:00]} 41. Qxb6+ {[%emt 0:00:50]} Kf7 {[%emt 0:05:05]} 42. Qxa5 {[%emt 0:01:31]} Qc1+ {[%emt 0:00:34]} 43. Kh2 {[%emt 0:00:21]} Qc4 {[%emt 0:01:11]} 44. a3 {[%emt 0:01:04]} e4 {[%emt 0:00:14]} 45. fxe4 {[%emt 0:00:35]} Qxe4 {[%emt 0:00:14]} 46. Qc7+ {[%emt 0:00:26]} Kg6 {[%emt 0:01:34]} 47. Qg3+ {[%emt 0:00:44]} Kh7 {[%emt 0:00:21]} 48. Bc5 {[%emt 0:02:35]} f5 {[%emt 0:04:09]} 49. Bd6 {[%emt 0:01:42]} Qe2 {[%emt 0:03:01]} 50. Be5 {[%emt 0:02:58]} Qg4 {[%emt 0:00:38]} 51. a4 {[%emt 0:01:58]} Kg6 {[%emt 0:01:18]} 52. a5 {[%emt 0:00:34]} Qxg3+ {[%emt 0:01:09]} 53. Kxg3 {[%emt 0:00:05]} Kh5 {[%emt 0:00:13]} 54. a6 {[%emt 0:00:07]} Bc6 {[%emt 0:00:17]} 55. Kh3 {[%emt 0:00:30]} Bd7 {[%emt 0:00:48]} 56. Kg3 {[%emt 0:00:10]} Bc6 {[%emt 0:00:05]} 57. a7 {[%emt 0:00:56]} Ba8 {[%emt 0:00:18]} 58. Bf4 {[%emt 0:00:30]} Bb7 {[%emt 0:00:24]} 59. Kh3 {[%emt 0:00:45]} Ba8 {[%emt 0:00:34]} 60. g3 {[%emt 0:00:06]} Bb7 {[%emt 0:03:03]} 61. Kh2 {[%emt 0:02:05]} Kg4 {[%emt 0:01:10]} 62. Kg1 {[%emt 0:00:06]} Ba8 {[%emt 0:01:10]} 63. Kf2 {[%emt 0:00:05]} Kh5 {[%emt 0:02:29]} 64. Ke3 {[%emt 0:00:05]} 1-0

[Event "WYCC 2018 G16"]
[Site "Halkidiki"]
[Date "2018.10.24"]
[Round "6"]
[White "Bulatova, Kamaliya"]
[Black "Muetsch, Annmarie"]
[Result "0-1"]
[ECO "E73"]
[WhiteElo "2108"]
[BlackElo "2206"]
[Annotator "ChessBase"]
[PlyCount "136"]
[EventDate "2018.10.20"]
[EventType "swiss"]
[EventCountry "GRE"]
[SourceTitle "playchess.com"]
[Source "ChessBase"]
[SourceQuality "1"]
[TimeControl "40/5400+30:1800+30"]

1. d4 {[%emt 0:00:00]} Nf6 {[%emt 0:00:00]} 2. c4 {[%emt 0:00:00]} g6 {[%emt 0:00:00]} 3. Nc3 {[%emt 0:00:00]} Bg7 {[%emt 0:00:00]} 4. e4 {[%emt 0:00:00]} d6 {[%emt 0:00:00]} 5. Be2 {[%emt 0:00:00]} O-O {[%emt 0:00:00]} 6. Be3 {[%emt 0:00:00]} e5 {[%emt 0:00:28]} 7. d5 {[%emt 0:00:00]} Na6 {[%emt 0:00:13]} 8. g4 {[%emt 0:00:00]} Nc5 {[%emt 0:00:09]} 9. f3 {[%emt 0:00:04]} h5 {[%emt 0:00:14]} 10. g5 {[%emt 0:05:19]} Nh7 {[%emt 0:00:08]} 11. h4 {[%emt 0:00:20]} f6 {[%emt 0:00:19]} 12. Qd2 {[%emt 0:03:48]} fxg5 {[%emt 0:00:20]} 13. hxg5 {[%emt 0:00:54]} Rf4 {[%emt 0:00:28]} 14. Bxf4 {[%emt 0:03:25]} exf4 {[%emt 0:00:06]} 15. Nh3 {[%emt 0:06:55]} Bxh3 {[%emt 0:00:14]} 16. Rxh3 {[%emt 0:00:01]} Nxg5 {[%emt 0:00:15]} 17. Rh1 {[%emt 0:00:17]} Be5 {[%emt 0:02:32]} 18. O-O-O {[%emt 0:00:48]} Qf6 {[%emt 0:04:05]} 19. Kc2 {[%emt 0:04:14]} a6 {[%emt 0:06:37]} 20. Rdg1 {[%emt 0:07:01]} b5 {[%emt 0:19:59]} 21. Qe1 {[%emt 0:11:59]} Kf7 {[%emt 0:21:55]} 22. Qh4 {[%emt 0:26:44]} Bxc3 {[%emt 0:04:06]} 23. bxc3 {[%emt 0:03:02]} Na4 {[%emt 0:01:03]} 24. Qe1 {[%emt 0:00:08]} b4 {[%emt 0:08:36]} 25. Rxg5 {[%emt 0:05:43]} Qxg5 {[%emt 0:14:03]} 26. cxb4 {[%emt 0:00:28]} a5 {[%emt 0:00:33]} 27. b5 {[%emt 0:05:42]} Qe5 {[%emt 0:01:22]} 28. Qa1 {[%emt 0:00:32]} Qxa1 {[%emt 0:03:03]} 29. Rxa1 {[%emt 0:00:03]} Kf6 {[%emt 0:00:34]} 30. Rg1 {[%emt 0:02:43]} g5 {[%emt 0:01:30]} 31. Kd3 {[%emt 0:00:42]} Nc5+ {[%emt 0:01:13]} 32. Kd4 {[%emt 0:00:02]} Nd7 {[%emt 0:00:08]} 33. Rh1 {[%emt 0:03:16]} Rh8 {[%emt 0:00:10]} 34. Rh3 {[%emt 0:02:54]} Kg6 {[%emt 0:01:29]} 35. Rh1 {[%emt 0:00:32]} Re8 {[%emt 0:01:38]} 36. Bd1 {[%emt 0:01:24]} Re5 {[%emt 0:01:31]} 37. Rg1 {[%emt 0:01:08]} Nc5 {[%emt 0:02:59]} 38. Bc2 {[%emt 0:01:24]} Kf6 {[%emt 0:01:45]} 39. Rg2 {[%emt 0:00:30]} Kg6 {[%emt 0:02:21]} 40. Rg1 {[%emt 0:00:00]} Kh6 {[%emt 0:00:00]} 41. Rh1 {[%emt 0:01:17]} Kg6 {[%emt 0:06:14]} 42. Rg1 {[%emt 0:00:06]} h4 {[%emt 0:05:37]} 43. Rh1 {[%emt 0:01:21]} Nd7 {[%emt 0:02:58]} 44. Bd3 {[%emt 0:01:43]} Kh5 {[%emt 0:01:39]} 45. Be2 {[%emt 0:02:10]} Re8 {[%emt 0:00:26]} 46. Bf1 {[%emt 0:00:38]} Ne5 {[%emt 0:04:18]} 47. Be2 {[%emt 0:00:50]} g4 {[%emt 0:02:09]} 48. fxg4+ {[%emt 0:00:18]} Kg5 {[%emt 0:00:04]} 49. c5 {[%emt 0:04:28]} f3 {[%emt 0:01:47]} 50. Bf1 {[%emt 0:03:07]} Nxg4 {[%emt 0:02:26]} 51. b6 {[%emt 0:01:41]} dxc5+ {[%emt 0:03:19]} 52. Kxc5 {[%emt 0:00:10]} cxb6+ {[%emt 0:00:05]} 53. Kxb6 {[%emt 0:00:23]} Rxe4 {[%emt 0:00:34]} 54. d6 {[%emt 0:00:26]} Nf6 {[%emt 0:02:48]} 55. Kc7 {[%emt 0:03:48]} Ne8+ {[%emt 0:02:52]} 56. Kd7 {[%emt 0:01:27]} Nxd6 {[%emt 0:00:09]} 57. Kxd6 {[%emt 0:00:52]} Re1 {[%emt 0:00:12]} 58. Kc5 {[%emt 0:00:29]} Ra1 {[%emt 0:02:31]} 59. a4 {[%emt 0:05:10]} Rxa4 {[%emt 0:00:13]} 60. Bc4 {[%emt 0:01:41]} Kg4 {[%emt 0:01:54]} 61. Rg1+ {[%emt 0:06:53]} Kf4 {[%emt 0:00:06]} 62. Rg8 {[%emt 0:00:23]} h3 {[%emt 0:01:22]} 63. Bd5 {[%emt 0:01:49]} f2 {[%emt 0:00:51]} 64. Rf8+ {[%emt 0:00:07]} Ke3 {[%emt 0:00:22]} 65. Rf3+ {[%emt 0:01:19]} Ke2 {[%emt 0:00:06]} 66. Bc6 {[%emt 0:00:06]} Rb4 {[%emt 0:00:53]} 67. Rf8 {[%emt 0:01:02]} f1=Q {[%emt 0:00:39]} 68. Re8+ {[%emt 0:01:13]} Kd2 {[%emt 0:00:17]} 0-1

[Event "WYCC 2018 G16"]
[Site "Halkidiki"]
[Date "2018.10.24"]
[Round "6"]
[White "Palma, Maria"]
[Black "Sanabria Taskila, Jenny Maria"]
[Result "0-1"]
[ECO "A13"]
[WhiteElo "2106"]
[BlackElo "1728"]
[Annotator "NA"]
[PlyCount "88"]
[EventDate "2018.10.20"]
[EventType "swiss"]
[EventCountry "GRE"]
[SourceTitle "playchess.com"]
[Source "ChessBase"]
[SourceQuality "1"]
[TimeControl "40/5400+30:1800+30"]

1. c4 {[%emt 0:00:00]} e6 {[%emt 0:00:00]} 2. Nf3 {[%emt 0:00:00]} d5 {[%emt 0:00:00]} 3. g3 {[%emt 0:00:00]} Nf6 {[%emt 0:00:00]} 4. b3 {[%emt 0:00:09]} Be7 {[%emt 0:00:05]} 5. Bg2 {[%emt 0:00:15]} O-O {[%emt 0:00:41]} 6. O-O {[%emt 0:01:52]} c6 {[%emt 0:00:32]} 7. Bb2 {[%emt 0:00:21]} b6 {[%emt 0:01:12]} 8. d4 {[%emt 0:00:27]} Bb7 {[%emt 0:00:43]} 9. Nc3 {[%emt 0:01:40]} Nbd7 {[%emt 0:03:25]} 10. Qd3 {[%emt 0:01:02]} Qb8 {[%emt 0:02:49]} 11. e4 {[%emt 0:06:25]} Rc8 {[%emt 0:03:04]} 12. Rfe1 {[%emt 0:10:21]} a5 {[%emt 0:08:08]} 13. Nd2 $14 {[%emt 0:14:30]} dxc4 {[%emt 0:06:47]} 14. bxc4 Ba6 15. e5 {[%emt 0:13:01]} Nd5 {[%emt 0:14:43]} 16. Qe4 {[%emt 0:06:33]} Nxc3 {[%emt 0:01:44]} 17. Bxc3 {[%emt 0:00:05]} Bb7 {[%emt 0:02:30]} 18. Rab1 {[%emt 0:06:01]} Qc7 {[%emt 0:02:54]} 19. Nf1 {[%emt 0:06:39]} Rd8 {[%emt 0:03:59]} 20. Ne3 {[%emt 0:01:44]} Nf8 {[%emt 0:10:09]} 21. Red1 {[%emt 0:07:52]} Rd7 {[%emt 0:03:31]} 22. Qg4 {[%emt 0:03:17]} b5 {[%emt 0:08:22]} 23. Ba1 {[%emt 0:03:29]} b4 {[%emt 0:01:05]} 24. d5 {[%emt 0:01:30]} cxd5 {[%emt 0:02:27]} 25. cxd5 {[%emt 0:00:08]} Bc5 {[%emt 0:03:12]} 26. Bd4 {[%emt 0:07:12]} Bxd4 {[%emt 0:02:24]} 27. Qxd4 {[%emt 0:00:05]} exd5 {[%emt 0:01:42]} 28. Nf5 {[%emt 0:04:47]} Ne6 {[%emt 0:01:35]} 29. Qb2 {[%emt 0:00:43]} d4 {[%emt 0:03:38]} 30. Bxb7 {[%emt 0:02:28]} Qxb7 {[%emt 0:00:07]} 31. Rbc1 {[%emt 0:01:03]} Qe4 {[%emt 0:02:09]} 32. Nd6 {[%emt 0:01:06]} Qxe5 {[%emt 0:01:56]} 33. Nc4 {[%emt 0:00:43]} Qb5 {[%emt 0:00:28]} 34. Nd2 {[%emt 0:00:51]} h6 {[%emt 0:01:02]} 35. Ne4 {[%emt 0:00:14]} Qf5 {[%emt 0:01:55]} 36. Qe2 {[%emt 0:00:25]} Rad8 {[%emt 0:01:43]} 37. Qd3 {[%emt 0:00:23]} Qg6 {[%emt 0:03:50]} 38. Kh1 {[%emt 0:00:22]} Qf5 {[%emt 0:00:59]} 39. Kg1 {[%emt 0:00:25]} Qd5 {[%emt 0:00:52]} 40. Rc2 {[%emt 0:00:00]} a4 {[%emt 0:00:00]} 41. Rb1 {[%emt 0:11:27]} f5 {[%emt 0:16:34]} 42. Nd2 {[%emt 0:00:42]} Rb7 {[%emt 0:01:52]} 43. Qa6 {[%emt 0:02:17]} d3 {[%emt 0:05:27]} 44. Rc6 {[%emt 0:01:57]} Nd4 {[%emt 0:00:33]} 0-1

[Event "WYCC 2018 G16"]
[Site "Halkidiki"]
[Date "2018.10.24"]
[Round "6"]
[White "Salonika, Saina"]
[Black "Maltsevskaya, Aleksandra"]
[Result "0-1"]
[ECO "B23"]
[WhiteElo "2093"]
[BlackElo "2290"]
[Annotator "NA"]
[PlyCount "50"]
[EventDate "2018.10.20"]
[EventType "swiss"]
[EventCountry "GRE"]
[SourceTitle "playchess.com"]
[Source "ChessBase"]
[SourceQuality "1"]
[TimeControl "40/5400+30:1800+30"]

1. e4 {[%emt 0:00:00]} c5 {[%emt 0:00:24]} 2. Nc3 {[%emt 0:00:06]} Nc6 {[%emt 0:01:14]} 3. f4 {[%emt 0:00:05]} e6 {[%emt 0:00:05]} 4. Nf3 {[%emt 0:00:04]} d5 {[%emt 0:00:06]} 5. Bb5 {[%emt 0:00:10]} Nge7 {[%emt 0:05:18]} 6. Qe2 {[%emt 0:03:29]} d4 {[%emt 0:05:26] LiveBook: 30 Games} 7. Nd1 {[%emt 0:02:24]} Qc7 {[%emt 0:00:18] B23: Closed Sicilian: Lines without g3} (7... a6 8. Bxc6+ Nxc6 9. d3 Be7 10. O-O O-O 11. Nf2 f5 12. Bd2 Bd7 13. g3 b5 14. Rae1 Qc7 15. c3 {0-1 (44) Kunin,V (2528)-Baramidze,D (2608) Nuremberg 2013}) 8. Ne5 $146 {[%emt 0:06:50]} ({Predecessor:} 8. O-O Bd7 9. d3 f6 10. a3 O-O-O 11. Bd2 Kb8 12. Nf2 Nc8 13. Bc4 Nb6 14. Ba2 a6 15. Rab1 {1-0 (41) Branding,V (2177)-Horvath,A (2498) Austria 2017}) 8... Bd7 {[%emt 0:14:44]} 9. Nxd7 {[%emt 0:10:16]} Qxd7 {[%emt 0:01:08]} 10. Nf2 {[%emt 0:08:24]} Qc7 {[%emt 0:05:13]} 11. Bxc6+ {[%emt 0:09:46]} Nxc6 {[%emt 0:00:09]} 12. d3 {[%emt 0:00:05]} O-O-O {[%emt 0:00:08]} 13. O-O {[%emt 0:04:06]} f5 {[%emt 0:03:34]} 14. Bd2 {[%emt 0:02:26]} Bd6 {[%emt 0:02:04]} 15. e5 {[%emt 0:06:03]} Be7 {[%emt 0:00:36]} 16. a3 {[%emt 0:03:04]} a5 {[%emt 0:04:49]} 17. c3 {[%emt 0:03:25]} g5 {[%emt 0:03:04]} (17... h6 $17) 18. fxg5 {[%emt 0:07:35]} Rhg8 {[%emt 0:06:08]} 19. Nh3 {[%emt 0:03:54]} dxc3 {[%emt 0:16:14]} 20. bxc3 {[%emt 0:00:07]} Qd7 {[%emt 0:03:25]} 21. d4 {[%emt 0:06:20]} cxd4 {[%emt 0:04:03]} 22. cxd4 {[%emt 0:00:07]} Qxd4+ $15 {[%emt 0:02:49]} 23. Be3 {[%emt 0:00:06]} Qxe5 {[%emt 0:05:48]} 24. Qf2 {[%emt 0:00:16]} Rd3 {[%emt 0:00:07]} 25. Rfe1 {[%emt 0:01:53]} Rxe3 {[%emt 0:00:16]} 0-1